bitfinex/quotes_SOLUSD_20250228
["timestamp","ask_amount","ask_price","bid_price","bid_amount"]
[1740755897374,20.0,146.01,145.97,0.03]
[1740755897545,102.8,146.0,145.97,0.03]
[1740755897740,20.0,146.0,145.97,0.03]
[1740755897970,82.8,145.99,145.97,0.0001]
[1740755898301,20.0,145.95,145.91,0.03]
[1740755898479,1.99994155,145.99,145.91,0.03]
[1740755898480,20.0,145.92,145.91,0.03]
[1740755898773,20.0,145.9,145.83,0.03]
[1740755899275,20.0,145.88,145.83,0.03]
[1740755899579,7.6913,145.94,145.84,0.14216157]
[1740755899777,82.8,146.02,145.85,3.43927726]
[1740755900070,20.0,145.99,145.88,0.14216157]
[1740755900275,20.0,145.98,145.89,10.08]
[1740755900644,82.8,146.01,145.89,10.08]
[1740755900860,82.8,146.01,145.92,312.0]
[1740755901059,20.0,145.98,145.92,312.0]
[1740755901451,82.8,146.01,145.94,18.64964886]
[1740755901763,82.8,146.09,145.97,0.14216157]
[1740755901946,82.8,146.09,146.0,0.14216157]
[1740755902148,82.8,146.13,146.02,0.14216157]
[1740755902354,10.54943807,146.15,146.04,20.79181043]
[1740755902555,82.8,146.18,146.06,18.79181043]
[1740755902782,82.8,146.18,146.06,18.64964886]
[1740755903171,20.0,146.14,146.05,11.51704724]
[1740755903485,0.14216157,146.13,146.0,10.08]
[1740755903690,20.0,146.09,146.0,10.08]
[1740755903866,20.0,146.09,145.98,115.32]
[1740755904059,20.0,146.09,146.0,10.08]
[1740755904468,102.8,146.08,146.0,312.0]
[1740755905180,3.36922564,146.07,146.0,312.0]
[1740755905476,3.36922564,146.07,145.98,10.08]
[1740755906758,3.36922564,146.07,145.92,136.5]
[1740755906759,3.36922564,146.07,145.97,10.08]
[1740755906960,20.0,146.03,145.97,10.08]
[1740755907567,20.0,146.02,145.97,10.08]
[1740755907770,82.8,146.01,145.97,10.08]
[1740755908166,82.8,146.08,145.99,0.14216157]
[1740755908365,82.8,146.17,146.03,312.0]
[1740755908684,82.8,146.16,146.05,18.64964886]
[1740755908878,82.8,146.18,146.07,18.64964886]
[1740755909077,82.8,146.18,146.09,18.64964886]
[1740755909285,0.063,146.19,146.11,18.64964886]
[1740755909487,20.0,146.17,146.13,18.64964886]
[1740755909688,0.063,146.19,146.13,18.64964886]
[1740755909883,20.063,146.19,146.13,18.64964886]
[1740755910187,0.063,146.19,146.12,10.08]
[1740755910783,20.0,146.15,146.02,3.51337098]
[1740755911085,82.8,146.14,146.03,10.08]
[1740755911681,82.8,146.13,146.03,10.08]
[1740755911872,82.8,146.13,146.06,312.0]
[1740755912077,82.8,146.12,146.06,312.0]
[1740755912376,82.8,146.12,145.99,218.1]
[1740755912377,82.8,146.12,146.0,10.08]
[1740755912571,82.8,146.11,146.0,10.08]
[1740755912974,82.8,146.11,146.01,18.64964886]
[1740755914487,20.0,146.08,146.01,18.64964886]
[1740755914692,20.0,146.07,146.01,18.64964886]
[1740755915402,20.0,146.07,146.04,312.0]
[1740755915702,3.47952819,146.12,145.99,10.06]
[1740755915703,20.0,146.06,145.99,10.06]
[1740755915902,82.8,146.08,146.0,20.08761288]
[1740755916067,82.8,146.12,146.01,0.14216157]
[1740755916273,82.8,146.12,146.02,18.64964886]
[1740755916481,20.0,146.08,145.99,10.06]
[1740755916681,82.8,146.07,145.99,10.06]
[1740755917000,20.0,146.03,145.97,0.03]
[1740755917172,102.8,146.03,145.97,0.03]
[1740755917882,20.0,145.99,145.97,0.03]
[1740755918087,102.8,145.99,145.97,0.03]
[1740755918901,102.8,145.99,145.97,312.03]
[1740755919470,102.8,145.99,145.97,0.03]
[1740755919669,82.8,146.03,145.97,10.09]
[1740755919871,82.8,146.12,145.98,18.64964886]
[1740755920077,20.0,146.08,145.98,18.64964886]
[1740755920291,82.8,146.07,145.98,18.64964886]
[1740755920868,20.0,146.04,145.98,18.64964886]
[1740755921085,20.0,146.03,145.97,10.09]
[1740755921803,82.8,146.02,145.97,10.09]
[1740755922493,82.8,146.02,145.97,322.09]
[1740755922692,20.0,145.99,145.97,322.09]
[1740755922896,20.0,145.98,145.97,322.09]
[1740755923078,102.8,145.98,145.97,312.03]
[1740755923591,82.8,145.98,145.97,312.03]
[1740755923773,3.51956134,146.06,145.97,312.03]
[1740755923774,82.8,146.05,145.97,312.03]
[1740755924094,82.8,146.05,145.97,0.03]
[1740755924269,20.0,146.02,145.97,0.03]
[1740755924470,20.0,146.01,145.97,0.03]
[1740755925983,82.8,146.0,145.97,0.03]
[1740755926183,82.8,146.05,145.97,0.03]
[1740755926472,20.0,146.01,145.97,0.03]
[1740755926672,82.8,146.0,145.97,0.03]
[1740755926876,82.8,145.99,145.97,0.03]
[1740755927076,82.8,145.98,145.97,0.03]
[1740755927375,20.0,146.01,145.91,0.03]
[1740755927579,102.8,146.0,145.91,0.03]
[1740755927788,20.0,145.96,145.91,0.03]
[1740755927973,20.0,146.0,145.91,0.03]
[1740755927974,82.8,145.95,145.91,0.03]
[1740755928178,20.0,145.92,145.91,0.03]
[1740755928781,102.8,145.91,145.83,0.03]
[1740755928985,20.0,145.87,145.83,0.03]
[1740755929192,20.0,145.86,145.83,0.03]
[1740755929483,3.413144,145.87,145.83,0.03]
[1740755929787,3.413144,145.87,145.83,10.09]
[1740755930090,3.413144,145.87,145.86,312.0]
[1740755930587,3.413144,145.87,145.83,0.03]
[1740755931091,20.0,145.92,145.83,18.82181043]
[1740755931293,102.8,145.92,145.83,100.42181043]
[1740755931675,18.64964886,145.99,145.83,100.42181043]
[1740755931676,86.17305668,145.91,145.83,0.03]
[1740755932281,82.8,145.95,145.85,0.14216157]
[1740755932495,8.2696,146.0,145.87,0.14216157]
[1740755932496,82.8,145.99,145.87,0.14216157]
[1740755932694,82.8,145.98,145.88,10.06]
[1740755933010,3.39505338,145.94,145.88,10.06]
[1740755933690,82.8,145.95,145.93,312.0]
[1740755933892,3.46997965,145.95,145.93,312.0]
[1740755934097,3.46997965,145.95,145.89,18.64964886]
[1740755934298,3.46997965,145.95,145.88,91.66]
[1740755934690,3.46997965,145.95,145.89,18.79181043]
[1740755935001,3.49328561,145.97,145.89,100.39181043]
[1740755935782,3.48229179,146.02,145.94,0.14216157]
[1740755935981,82.8,146.03,145.95,10.06]
[1740755935982,3.48366602,146.03,145.95,10.06]
[1740755936284,82.8,146.07,145.96,0.14216157]
[1740755936488,3.36513892,146.04,145.96,81.74216157]
[1740755936887,3.36513892,146.04,145.96,81.6]
[1740755937200,3.36513892,146.04,146.03,312.0]
[1740755937698,26.17174886,146.09,146.03,312.0]
[1740755937699,82.8,146.07,146.03,312.0]
[1740755937898,90.3221,146.09,146.02,10.06]
[1740755938093,0.063,146.12,146.03,18.79181043]
[1740755939791,0.063,146.12,146.03,10.42745081]
[1740755940102,0.063,146.12,146.03,1.57975081]
[1740755940306,0.063,146.12,146.02,228.16]
[1740755940307,0.063,146.12,146.04,10.06]
[1740755940605,20.0,146.11,146.04,10.06]
[1740755940907,82.8,146.1,146.04,10.06]
[1740755941094,20.0,146.07,146.04,10.06]
[1740755941897,20.0,146.03,145.95,218.1]
[1740755942097,82.8,146.05,145.97,0.03]
[1740755942406,20.0,146.01,145.97,0.03]
[1740755942705,86.26788518,146.03,145.97,0.03]
[1740755942899,82.8,146.09,145.97,0.03]
[1740755943100,20.0,146.05,145.98,1.57990171]
[1740755943319,82.8,146.08,145.99,18.64964886]
[1740755943320,20.0,146.08,145.99,18.64964886]
[1740755943501,82.8,146.11,146.01,18.79181043]
[1740755943687,82.8,146.11,146.03,0.14216157]
[1740755943887,82.8,146.11,146.1,312.0]
[1740755944084,82.8,146.11,146.04,10.06]
[1740755944299,20.0,146.08,146.04,10.06]
[1740755944590,82.8,146.1,146.04,10.06]
[1740755945092,82.8,146.1,146.09,312.0]
[1740755945296,20.0,146.1,146.09,312.0]
[1740755945498,20.0,146.1,146.04,10.06]
[1740755945789,82.8,146.09,146.0,18.79181043]
[1740755945987,20.0,146.05,145.99,10.06]
[1740755946394,23.3703746,146.05,146.04,312.0]
[1740755946594,20.0,146.05,146.04,312.0]
[1740755946798,3.4283839,146.06,145.99,10.06]
[1740755946995,0.063,146.12,146.0,1.43825741]
[1740755947298,3.4852054,146.12,146.01,18.79181043]
[1740755947493,0.063,146.12,146.03,18.79181043]
[1740755947695,0.063,146.12,146.05,0.14216157]
[1740755947890,0.063,146.12,146.07,18.79181043]
[1740755948106,0.063,146.12,146.07,236.89181043]
[1740755948411,0.063,146.12,146.08,1.43680544]
[1740755948602,0.063,146.12,146.09,0.14216157]
[1740755948908,0.063,146.12,146.06,10.06]
[1740755949411,20.0,146.1,146.06,10.06]
[1740755950110,0.063,146.12,146.07,0.14216157]
[1740755950417,0.063,146.12,146.1,0.14216157]
[1740755950724,0.063,146.12,146.1,83.17879464]
[1740755950890,0.063,146.12,146.11,312.0]
[1740755952723,20.0,146.08,146.01,10.06]
[1740755952925,82.8,146.07,146.01,10.06]
[1740755953799,20.0,146.08,146.01,10.06]
[1740755954725,82.8,146.11,146.02,18.79181043]
[1740755955024,0.063,146.12,146.07,312.0]
[1740755955195,0.063,146.12,146.08,10.06]
[1740755956415,0.063,146.12,146.08,91.66]
[1740755956624,0.063,146.12,146.08,93.09681295]
[1740755957508,0.063,146.12,146.09,0.14216157]
[1740755957710,0.063,146.12,146.09,18.79181043]
[1740755958115,0.063,146.12,146.11,0.14216157]
[1740755958340,0.063,146.12,146.11,412.39181043]
[1740755958804,0.063,146.12,146.11,393.74216157]
[1740755959301,0.063,146.12,146.11,412.39181043]
[1740755959507,0.063,146.12,146.11,312.0]
[1740755960313,0.063,146.12,146.11,330.79181043]
[1740755960508,0.063,146.12,146.11,312.0]
[1740755961603,0.063,146.12,146.11,330.79181043]
[1740755962024,0.063,146.12,146.11,312.14216157]
[1740755962428,0.063,146.12,146.11,312.0]
[1740755963531,0.063,146.12,146.11,393.6]
[1740755963732,0.063,146.12,146.11,412.39181043]
[1740755965237,0.063,146.12,146.11,393.6]
[1740755965406,0.063,146.12,146.11,312.0]
[1740755965919,0.063,146.12,146.11,312.03]
[1740755966122,0.063,146.12,146.11,412.42181043]
[1740755966324,0.063,146.12,146.11,393.63]
[1740755967026,0.063,146.12,146.11,312.03]
[1740755967422,0.063,146.12,146.11,393.63]
[1740755967631,0.063,146.12,146.11,393.77216157]
[1740755968015,0.063,146.12,146.11,548.92181043]
[1740755968330,0.063,146.12,146.11,555.76591043]
[1740755968535,0.063,146.12,146.11,557.76591043]
[1740755968735,0.063,146.12,146.11,555.76591043]
[1740755969533,0.063,146.12,146.11,557.76591043]
[1740755970735,0.063,146.12,146.11,555.76591043]
[1740755971126,0.063,146.12,146.11,548.77964886]
[1740755971423,0.063,146.12,146.11,312.03]
[1740755971811,0.063,146.12,146.11,322.07]
[1740755973232,0.063,146.12,146.11,312.03]
[1740755973409,82.863,146.12,146.11,312.03]
[1740755974535,0.063,146.12,146.11,312.03]
[1740755974832,20.0,146.09,146.02,10.04]
[1740755975040,82.8,146.08,146.02,10.04]
[1740755977030,82.8,146.07,146.02,10.04]
[1740755977235,82.8,146.06,146.02,10.04]
[1740755977444,82.8,146.05,145.97,0.03]
[1740755977628,86.22200789,146.04,145.98,312.0]
[1740755977953,0.14216157,146.02,145.98,312.0]
[1740755978134,3.48346464,146.0,145.98,312.0]
[1740755978437,20.0,145.98,145.97,0.03]
[1740755978639,82.8,145.99,145.97,0.03]
[1740755978942,82.8,146.03,145.97,0.03]
[1740755979120,82.8,146.07,145.97,0.03]
[1740755979321,82.8,146.06,145.97,0.17216157]
[1740755979537,84.8,146.11,145.97,0.03]
[1740755979724,18.79181043,146.1,145.97,0.03]
[1740755979923,3.3814945,146.09,145.98,1.43806244]
[1740755980238,20.0,146.05,145.99,10.04]
[1740755980436,20.0,146.04,145.99,10.04]
[1740755980821,82.8,146.07,145.99,10.04]
[1740755981031,20.0,146.03,145.99,10.04]
[1740755981441,102.8,146.03,145.99,312.0]
[1740755982326,82.8,146.11,145.99,136.5]
[1740755982530,3.46550586,146.1,145.99,218.1]
[1740755982737,3.46550586,146.1,146.0,20.22951938]
[1740755982939,82.8,146.11,146.0,20.22951938]
[1740755983137,20.0,146.08,146.0,100.39181043]
[1740755983361,82.8,146.1,146.0,100.39181043]
[1740755983936,82.8,146.1,146.02,18.79181043]
[1740755984124,0.063,146.12,146.04,20.79181043]
[1740755984323,0.063,146.12,146.05,1.43691065]
[1740755985030,0.063,146.12,146.06,18.79181043]
[1740755985221,0.063,146.12,146.07,1.43683997]
[1740755985436,0.063,146.12,146.11,312.0]
[1740755985630,0.063,146.12,146.11,322.04]
[1740755986247,0.063,146.19,146.13,2.0]
[1740755986554,0.063,146.19,146.18,0.14216157]
[1740755986845,0.063,146.19,146.18,10.02]
[1740755989333,0.063,146.19,146.18,322.02]
[1740755990743,0.063,146.19,146.18,340.81181043]
[1740755991243,0.063,146.19,146.18,322.02]
[1740755993545,0.063,146.19,146.18,312.0]
[1740755995553,0.063,146.19,146.16,10.02]
[1740755996342,20.0,146.17,146.09,81.6]
[1740755996547,20.0,146.15,146.1,10.02]
[1740755997150,82.8,146.17,146.1,10.02]
[1740755998545,82.8,146.17,146.12,312.0]
[1740755998857,20.0,146.16,146.12,312.0]
[1740755999153,20.0,146.1,146.05,0.03]
[1740755999336,82.8,146.09,146.05,0.03]
[1740755999745,82.8,146.14,146.05,0.03]
[1740755999942,82.8,146.14,146.05,83.06712088]
[1740756000145,20.0,146.11,146.05,81.63]
[1740756000349,3.41016257,146.16,146.05,81.63]
[1740756000350,82.8,146.13,146.05,0.03]
[1740756000665,20.0,146.09,146.05,0.03]
[1740756000839,20.0,146.08,146.05,0.03]
[1740756001034,82.8,146.11,146.05,0.03]
[1740756001236,82.8,146.15,146.06,18.79181043]
[1740756001458,82.8,146.14,146.05,0.03]
[1740756001635,20.0,146.1,146.05,0.03]
[1740756001839,82.8,146.12,146.06,10.02]
[1740756002056,82.8,146.18,146.11,312.0]
[1740756002363,0.063,146.12,146.06,10.02]
[1740756002536,102.8,146.11,146.05,0.03]
[1740756002744,20.0,146.07,146.05,0.03]
[1740756002941,82.8,146.06,146.05,0.03]
[1740756003148,20.0,146.07,146.05,0.03]
[1740756003385,20.0,146.06,145.97,0.03]
[1740756003543,20.0,146.06,145.98,10.02]
[1740756003749,20.0,146.05,145.98,10.02]
[1740756003936,28.1768,146.05,145.98,10.02]
[1740756004140,20.0,146.01,145.97,0.03]
[1740756004966,3.50874038,146.02,145.97,0.03]
[1740756005272,8.1768,146.05,145.97,312.03]
[1740756005458,20.0,146.02,145.97,312.03]
[1740756005965,8.1768,146.05,145.97,0.03]
[1740756006349,20.0,146.02,145.97,0.03]
[1740756006657,21.99994155,146.0,145.97,0.03]
[1740756006853,20.0,145.95,145.94,0.03]
[1740756009756,82.8,145.95,145.85,22.23100002]
[1740756010070,82.8,145.98,145.89,20.79181043]
[1740756010248,82.8,146.04,145.9,2.0]
[1740756010453,82.8,146.04,145.91,10.02]
[1740756010844,82.8,146.04,145.93,20.64964886]
[1740756011143,20.5526,146.06,145.93,157.14964886]
[1740756011359,3.50897945,146.07,145.96,18.79181043]
[1740756011554,82.8,146.08,145.99,18.79181043]
[1740756011771,0.063,146.12,146.0,10.02]
[1740756011772,23.51104073,146.1,146.0,10.02]
[1740756012081,82.863,146.12,146.02,18.64964886]
[1740756012366,0.063,146.12,146.09,312.0]
[1740756012941,0.063,146.12,146.0,228.12]
[1740756012942,20.063,146.12,146.0,228.12]
[1740756013153,0.063,146.12,146.01,1.57984322]
[1740756013367,0.063,146.12,146.02,18.64964886]
[1740756013566,0.063,146.12,146.03,0.14216157]
[1740756014043,0.063,146.12,146.07,0.14216157]
[1740756014246,0.063,146.12,146.08,10.02]
[1740756015158,0.063,146.09,146.08,10.02]
[1740756015472,0.063,146.09,146.08,28.81181043]
[1740756015685,0.063,146.09,146.08,168.74876857]
[1740756015972,0.063,146.09,146.08,479.31181043]
[1740756016357,0.063,146.09,146.08,477.31181043]
[1740756016562,0.063,146.09,146.08,486.15731043]
[1740756016956,0.063,146.12,146.09,20.79181043]
[1740756017271,0.063,146.12,146.1,1.43649518]
[1740756017567,0.063,146.12,146.11,18.79181043]
[1740756017868,0.063,146.12,146.11,0.14216157]
[1740756018068,0.063,146.12,146.1,18.64964886]
[1740756018447,0.063,146.12,146.11,0.14216157]
[1740756018644,0.063,146.12,146.09,218.1]
[1740756018871,0.063,146.12,146.11,10.16216157]
[1740756019575,0.063,146.12,146.11,10.02]
[1740756020065,0.063,146.12,146.11,322.02]
[1740756020467,0.063,146.12,146.11,340.64964886]
[1740756020660,0.063,146.12,146.11,322.0]
[1740756021575,0.063,146.12,146.11,340.79181043]
[1740756021769,0.063,146.12,146.11,484.13591043]
[1740756022075,0.063,146.12,146.11,486.13591043]
[1740756022264,0.063,146.12,146.11,322.0]
[1740756022455,0.063,146.12,146.11,328.98626157]
[1740756022655,0.063,146.19,146.11,328.98626157]
[1740756022656,0.063,146.19,146.14,0.14216157]
[1740756022857,0.063,146.19,146.16,20.79181043]
[1740756023055,0.063,146.19,146.18,18.79181043]
[1740756023256,0.063,146.19,146.18,10.0]
[1740756023466,0.063,146.27,146.18,10.0]
[1740756023873,3.57072917,146.26,146.18,10.0]
[1740756024059,0.063,146.26,146.18,10.0]
[1740756024258,0.063,146.26,146.19,0.14216157]
[1740756024461,0.063,146.26,146.2,1.43567976]
[1740756024766,0.063,146.26,146.21,20.79181043]
[1740756024959,0.063,146.26,146.23,18.79181043]
[1740756025889,0.063,146.26,146.25,312.0]
[1740756027092,0.063,146.26,146.25,322.0]
[1740756027386,0.063,146.26,146.25,340.79181043]
[1740756027888,0.9304595,146.41,146.27,2.0]
[1740756028098,0.9304595,146.41,146.32,0.14216157]
[1740756028389,0.9304595,146.41,146.33,10.0]
[1740756028558,82.8,146.4,146.33,10.0]
[1740756030958,82.8,146.4,146.36,312.0]
[1740756032482,82.8,146.4,146.33,10.0]
[1740756032665,82.8,146.39,146.28,10.0]
[1740756032863,22.79175198,146.39,146.28,10.0]
[1740756033061,84.8,146.38,146.25,196.84]
[1740756033261,84.8,146.37,146.26,10.0]
[1740756033460,3.99994155,146.35,146.22,81.6]
[1740756033660,82.8,146.34,146.23,10.0]
[1740756033861,82.8,146.35,146.24,20.08522985]
[1740756034061,82.8,146.35,146.25,2.14216157]
[1740756034263,82.8,146.35,146.25,220.24216157]
[1740756034785,82.8,146.35,146.25,85.00433851]
[1740756035092,82.8,146.35,146.25,81.6]
[1740756035295,20.0,146.31,146.23,81.6]
[1740756035474,82.8,146.3,146.27,312.0]
[1740756036169,82.8,146.3,146.25,10.0]
[1740756036470,82.8,146.35,146.25,91.6]
[1740756036865,20.0,146.32,146.25,91.6]
[1740756037193,102.8,146.31,146.25,10.0]
[1740756037366,20.0,146.27,146.21,10.0]
[1740756037567,20.64959041,146.32,146.21,10.0]
[1740756037568,20.0,146.26,146.21,10.0]
[1740756038184,82.8,146.28,146.21,10.0]
[1740756038404,82.8,146.28,146.18,9.98]
[1740756038574,82.8,146.27,146.18,9.98]
[1740756039096,82.8,146.27,146.25,0.03]
[1740756039968,82.8,146.26,146.25,0.03]
[1740756040475,20.64959041,146.29,146.25,0.03]
[1740756040666,2.14216157,146.29,146.25,0.03]
[1740756040867,84.79994155,146.3,146.25,0.03]
[1740756041099,18.64964886,146.29,146.25,0.03]
[1740756041302,82.8,146.3,146.25,0.03]
[1740756041794,20.0,146.27,146.25,0.03]
[1740756041983,82.8,146.29,146.25,0.03]
[1740756042299,82.8,146.29,146.26,312.0]
[1740756042496,20.0,146.26,146.25,0.03]
[1740756042699,20.0,146.22,146.1,218.1]
[1740756042880,82.8,146.21,146.15,9.98]
[1740756043079,82.8,146.2,146.15,9.98]
[1740756044004,20.0,146.17,146.1,81.6]
[1740756044204,82.8,146.19,146.11,9.98]
[1740756044365,20.0,146.16,146.11,9.98]
[1740756044987,82.8,146.19,146.11,9.98]
[1740756045218,82.8,146.22,146.12,0.14216157]
[1740756045397,82.8,146.22,146.12,81.6]
[1740756045604,20.0,146.19,146.18,312.0]
[1740756045793,102.8,146.19,146.18,312.0]
[1740756046213,20.0,146.15,146.1,0.03]
[1740756046423,82.8,146.14,146.1,0.03]
[1740756046603,20.0,146.11,146.1,0.03]
[1740756047103,1.99994155,146.18,146.1,0.03]
[1740756047425,20.0,146.16,146.1,0.03]
[1740756047590,20.0,146.13,146.1,0.03]
[1740756048219,20.0,146.14,146.1,0.03]
[1740756048458,20.0,146.13,146.1,0.03]
[1740756048924,1.99994155,146.14,146.1,0.03]
[1740756049089,18.64964886,146.12,146.1,0.03]
[1740756049286,20.64959041,146.12,146.1,0.03]
[1740756049890,18.64964886,146.12,146.1,0.03]
[1740756050091,3.38181813,146.17,146.1,0.03]
[1740756050321,1.99994155,146.21,146.1,0.03]
[1740756050615,3.39760498,146.2,146.1,0.03]
[1740756050818,20.64964886,146.19,146.1,0.03]
[1740756051113,84.79994155,146.18,146.1,0.03]
[1740756051305,1.99994155,146.14,146.1,0.03]
[1740756051505,0.14216157,146.11,146.1,0.03]
[1740756051693,2.14210312,146.11,146.1,0.03]
[1740756052228,0.14216157,146.11,146.1,0.03]
[1740756052429,18.64964886,146.12,146.1,0.03]
[1740756052830,20.64959041,146.12,146.1,0.03]
[1740756053020,20.64959041,146.11,146.1,0.03]
[1740756053218,40.64959041,146.11,146.1,0.03]
[1740756053526,38.79181043,146.11,146.1,0.03]
[1740756054033,20.79175198,146.11,146.1,0.03]
[1740756055029,22.79175198,146.11,146.1,0.03]
[1740756055228,42.79175198,146.11,146.1,0.03]
[1740756055424,38.64964886,146.09,146.08,0.03]
[1740756056138,8.1689,146.11,146.08,0.03]
[1740756056522,20.0,146.09,146.08,0.03]
[1740756056730,20.64959041,146.12,146.08,0.03]
[1740756056925,82.8,146.14,146.08,10.01]
[1740756057229,1.99994155,146.16,146.08,10.01]
[1740756057639,1.99994155,146.16,146.12,312.0]
[1740756057819,82.8,146.15,146.12,312.0]
[1740756058639,1.99994155,146.2,146.08,16.8551]
[1740756058820,82.8,146.21,146.11,0.14216157]
[1740756059022,82.8,146.2,146.11,81.6]
[1740756059231,1.99994155,146.23,146.09,81.6]
[1740756059232,82.8,146.19,146.09,81.6]
[1740756059438,82.8,146.18,146.09,81.6]
[1740756060316,20.0,146.14,146.08,10.01]
[1740756060516,20.0,146.1,146.08,0.03]
[1740756061042,82.8,146.14,146.08,0.03]
[1740756061239,3.36351049,146.15,146.08,0.03]
[1740756061533,20.0,146.14,146.12,312.0]
[1740756061738,82.8,146.13,146.12,312.0]
[1740756061935,20.0,146.1,146.08,0.03]
[1740756062125,102.8,146.1,146.08,0.03]
[1740756062842,82.8,146.09,146.08,0.03]
[1740756063221,82.8,146.19,146.08,0.03]
[1740756063546,3.51278673,146.14,146.08,0.03]
[1740756063715,3.51278673,146.14,146.09,0.03]
[1740756064043,23.51278673,146.14,146.09,0.03]
[1740756064551,3.51278673,146.14,146.09,0.03]
[1740756064854,23.51278673,146.14,146.13,312.0]
[1740756066049,20.0,146.13,146.09,0.03]
[1740756066219,102.8,146.13,146.09,0.03]
[1740756066417,20.0,146.13,146.09,0.03]
[1740756066640,82.8,146.19,146.09,0.03]
[1740756066844,82.8,146.19,146.11,18.64964886]
[1740756067141,3.55495636,146.25,146.14,2.14216157]
[1740756067344,20.0,146.23,146.17,0.14216157]
[1740756067553,0.063,146.25,146.19,0.14216157]
[1740756067721,0.063,146.25,146.22,0.14216157]
[1740756067917,0.063,146.25,146.23,9.98]
[1740756069153,0.063,146.25,146.23,321.98]
[1740756069758,10.60035744,146.37,146.26,0.14216157]
[1740756069921,10.60035744,146.37,146.29,18.64964886]
[1740756070120,10.60035744,146.37,146.3,11.41456318]
[1740756070321,93.40035744,146.37,146.3,9.98]
[1740756070751,102.8,146.34,146.25,9.98]
[1740756071123,3.38758621,146.32,146.25,9.98]
[1740756071321,82.8,146.31,146.25,9.98]
[1740756071527,82.8,146.3,146.19,9.98]
[1740756071736,84.79994155,146.29,146.19,9.98]
[1740756071934,0.14216157,146.26,146.19,9.98]
[1740756072122,82.8,146.25,146.14,9.98]
[1740756072548,82.8,146.25,146.19,312.0]
[1740756072752,3.4737591,146.23,146.19,312.0]
[1740756072938,97.43334155,146.36,146.2,1.57836306]
[1740756073151,95.4334,146.36,146.21,9.98]
[1740756073463,3.47615905,146.33,146.22,18.79181043]
[1740756073624,3.47615905,146.33,146.24,0.14216157]
[1740756074240,3.47615905,146.33,146.22,136.5]
[1740756074444,3.47615905,146.33,146.22,137.93518383]
[1740756074640,82.8,146.32,146.21,23.1938]
[1740756074839,20.0,146.29,146.21,23.1938]
[1740756075045,20.0,146.27,146.22,9.98]
[1740756075243,82.8,146.32,146.22,91.58]
[1740756075554,20.0,146.28,146.22,9.98]
[1740756075858,20.0,146.28,146.23,0.14216157]
[1740756076039,82.8,146.31,146.27,312.0]